bitfinex/quotes_SOLUSD_20240615
["timestamp","ask_amount","ask_price","bid_price","bid_amount"]
[1718450491798,6.5384248,144.26,144.2,16.1687]
[1718450491983,0.8584248,144.26,144.21,5.68]
[1718450493907,6.5384248,144.26,144.21,5.68]
[1718450494285,6.5384248,144.26,143.75,44.08001121]
[1718450494286,8.2456,144.22,144.13,16.1687]
[1718450494487,5.68,144.18,144.12,5.68]
[1718450494786,5.68,144.17,144.12,5.68]
[1718450494989,5.68,144.17,144.11,5.68]
[1718450496086,5.68,144.17,144.11,105.68]
[1718450497408,5.68,144.17,144.11,5.68]
[1718450499911,5.68,144.17,144.11,105.68]
[1718450500483,5.68,144.17,144.12,5.68]
[1718450501494,5.68,144.17,144.11,5.68]
[1718450502509,5.68,144.16,144.11,5.68]
[1718450505415,5.68,144.16,144.1,0.51]
[1718450505619,5.68,144.15,144.1,6.02]
[1718450506193,5.68,144.15,144.1,0.34]
[1718450507417,5.68,144.15,144.08,0.17]
[1718450507627,5.68,144.15,144.09,5.68]
[1718450508201,5.68,144.15,144.09,105.68]
[1718450508412,5.68,144.15,144.1,6.02]
[1718450514638,5.68,144.15,144.1,0.34]
[1718450515228,15.0263,144.14,144.07,126.53139882]
[1718450515522,5.68,144.13,144.07,5.68]
[1718450515927,5.68,144.12,144.07,5.68]
[1718450516514,5.68,144.12,144.08,0.34]
[1718450516719,5.68,144.11,144.05,100.0]
[1718450516900,5.68,144.12,144.06,25.68]
[1718450518124,5.68,144.12,144.03,100.0]
[1718450518299,5.68,144.1,144.03,100.0]
[1718450518595,5.68,144.13,144.04,5.68]
[1718450518797,5.68,144.1,144.05,5.68]
[1718450520009,5.68,144.1,144.04,0.51]
[1718450520354,5.68,144.1,144.05,5.68]
[1718450521711,5.68,144.1,144.04,0.51]
[1718450521912,5.68,144.1,144.04,20.51]
[1718450522140,5.68,144.1,144.05,5.68]
[1718450522311,5.68,144.1,144.04,20.51]
[1718450522624,5.68,144.1,144.04,26.19]
[1718450522930,22.0277,144.09,144.04,0.34]
[1718450523431,16.3477,144.09,144.04,0.34]
[1718450523638,5.68,144.08,144.03,5.85]
[1718450523928,5.68,144.08,144.02,6.02]
[1718450527935,16.3477,144.09,144.04,5.85]
[1718450528131,16.3477,144.09,144.05,5.68]
[1718450530423,16.3477,144.09,144.04,5.85]
[1718450531429,16.3477,144.09,144.04,0.17]
[1718450531738,16.3477,144.09,144.04,6.19]
[1718450536127,16.3477,144.09,144.04,0.34]
[1718450536356,22.0277,144.09,144.04,0.34]
[1718450536564,5.68,144.08,144.03,5.85]
[1718450537231,5.68,144.08,144.03,0.17]
[1718450537438,5.68,144.08,144.03,0.34]
[1718450537741,5.68,144.08,144.03,6.02]
[1718450538128,5.68,144.08,144.03,5.68]
[1718450538457,22.8,144.09,143.99,100.0]
[1718450538458,5.68,144.06,143.99,100.0]
[1718450538664,5.68,144.05,144.0,5.68]
[1718450538957,5.68,144.05,143.99,100.0]
[1718450539167,5.68,144.06,144.0,5.68]
[1718450539327,5.68,144.06,144.01,5.68]
[1718450539868,5.68,144.07,144.01,5.68]
[1718450540026,5.68,144.07,144.0,0.17]
[1718450540364,5.68,144.06,144.01,5.68]
[1718450541254,5.68,144.06,144.0,0.17]
[1718450541557,5.68,144.06,144.0,25.68]
[1718450541750,5.68,144.05,144.0,25.68]
[1718450542253,5.68,144.05,144.0,20.0]
[1718450542951,5.68,144.05,144.0,25.68]
[1718450543273,5.68,144.05,144.0,20.0]
[1718450543430,5.68,144.05,144.0,25.68]
[1718450544341,5.68,144.05,143.98,0.17]
[1718450544539,5.68,144.05,143.99,5.68]
[1718450547679,5.68,144.04,143.99,5.68]
[1718450548841,5.68,144.04,143.96,0.17]
[1718450548842,21.9495,144.03,143.96,0.17]
[1718450549057,21.9495,144.03,143.97,5.68]
[1718450550274,21.9495,144.03,143.96,20.68]
[1718450550443,21.9495,144.03,143.97,5.68]
[1718450551074,21.9495,144.03,143.96,20.68]
[1718450551246,21.9495,144.03,143.97,5.68]
[1718450553167,21.9495,144.03,143.96,41.52]
[1718450553370,21.9495,144.03,143.97,5.68]
[1718450553867,16.2695,144.03,143.97,5.68]
[1718450554052,5.68,144.02,143.97,5.68]
[1718450554253,5.68,144.02,143.96,20.68]
[1718450554452,5.68,144.02,143.96,26.19]
[1718450554664,5.68,144.02,143.96,6.19]
[1718450556677,5.68,144.02,143.96,0.51]
[1718450556880,5.68,144.02,143.96,6.19]
[1718450557065,5.68,144.02,143.96,0.51]
[1718450557368,5.68,144.02,143.96,6.19]
[1718450560179,5.68,144.02,143.96,0.51]
[1718450560383,5.68,144.02,143.96,6.19]
[1718450560581,16.2695,144.03,143.97,5.68]
[1718450560785,21.9495,144.03,143.97,5.68]
[1718450561772,5.68,144.02,143.96,5.68]
[1718450561973,5.68,144.01,143.95,105.68]
[1718450562347,5.68,144.01,143.95,5.68]
[1718450563593,27.6129,144.0,143.93,100.0]
[1718450563879,5.68,143.99,143.93,105.68]
[1718450566094,5.68,143.99,143.93,100.0]
[1718450566569,5.68,143.99,143.94,5.68]
[1718450567583,5.68,143.99,143.93,5.68]
[1718450568365,5.68,143.98,143.93,5.68]
[1718450568761,5.68,143.98,143.92,6.02]
[1718450569163,5.68,143.97,143.89,100.0]
[1718450569483,5.68,143.97,143.91,5.68]
[1718450570866,5.68,143.97,143.91,0.17]
[1718450571067,5.68,143.96,143.9,20.51]
[1718450571289,15.8759,143.95,143.9,25.68]
[1718450571474,21.5559,143.95,143.9,25.68]
[1718450574367,21.5559,143.95,143.9,20.0]
[1718450574569,21.5559,143.95,143.9,25.68]
[1718450574769,15.8759,143.95,143.9,25.68]
[1718450577173,15.8759,143.95,143.91,5.68]
[1718450577390,15.8759,143.95,143.92,5.68]
[1718450578705,15.8759,143.95,143.91,5.68]
[1718450583109,15.8759,143.95,143.9,25.68]
[1718450583599,28.0275,143.95,143.9,25.68]
[1718450583982,22.3475,143.95,143.9,25.68]
[1718450585099,22.3475,143.95,143.91,5.68]
[1718450586102,22.3475,143.95,143.9,25.68]
[1718450586815,22.3475,143.95,143.9,20.0]
[1718450587107,22.3475,143.95,143.9,25.68]
[1718450588711,28.0275,143.95,143.9,25.68]
[1718450588893,28.0275,143.95,143.9,5.68]
[1718450589612,5.68,143.94,143.88,5.68]
[1718450589916,5.68,143.92,143.84,5.47437937]
[1718450590119,5.68,143.91,143.85,5.68]
[1718450590783,5.68,143.9,143.85,5.68]
[1718450592219,5.68,143.9,143.83,100.0]
[1718450592509,5.68,143.9,143.85,5.68]
[1718450592814,5.68,143.9,143.84,20.0]
[1718450593002,15.2087,143.89,143.84,20.0]
[1718450593209,15.2087,143.89,143.84,25.68]
[1718450594309,15.2087,143.89,143.85,5.68]
[1718450594908,15.2087,143.89,143.83,100.0]
[1718450595096,20.8887,143.89,143.82,0.68]
[1718450595303,20.8887,143.89,143.84,5.68]
[1718450595518,20.8887,143.89,143.83,5.68]
[1718450596890,20.8887,143.89,143.82,0.68]
[1718450597100,20.8887,143.89,143.82,20.68]
[1718450597498,20.8887,143.89,143.83,5.68]
[1718450598115,20.8887,143.89,143.82,20.68]
[1718450598418,20.8887,143.89,143.83,5.68]
[1718450598802,20.8887,143.89,143.82,20.68]
[1718450599014,20.8887,143.89,143.83,5.68]
[1718450600617,20.8887,143.89,143.84,5.68]
[1718450603106,20.8887,143.89,143.82,20.68]
[1718450603532,20.8887,143.89,143.83,5.68]
[1718450604428,20.8887,143.89,143.84,5.68]
[1718450604603,15.2087,143.89,143.85,5.68]
[1718450604916,15.2087,143.89,143.86,5.68]
[1718450605215,15.2087,143.89,143.85,5.68]
[1718450606726,15.2087,143.89,143.84,5.68]
[1718450611721,15.2087,143.89,143.85,6.92136147]
[1718450612026,7.22559194,143.96,143.85,6.92136147]
[1718450612027,6.4175,143.93,143.88,5.68]
[1718450612199,16.3428,143.94,143.92,5.68]
[1718450612603,16.3428,143.94,143.91,5.68]
[1718450612820,16.3428,143.94,143.9,5.68]
[1718450613226,16.3428,143.94,143.87,100.0]
[1718450613410,16.25093706,143.94,143.89,5.68]
[1718450614423,16.25093706,143.94,143.9,5.68]
[1718450615505,21.93093706,143.94,143.88,5.68]
[1718450617099,21.93093706,143.94,143.85,120.84]
[1718450617409,21.93093706,143.94,143.87,5.68]
[1718450617410,5.68,143.93,143.87,5.68]
[1718450617612,5.68,143.92,143.87,5.68]
[1718450617826,5.68,143.92,143.84,21.01]
[1718450617827,12.0975,143.92,143.84,0.17]
[1718450618016,12.0975,143.92,143.87,5.68]
[1718450618604,12.0975,143.92,143.86,5.68]
[1718450619428,12.0975,143.92,143.87,5.68]
[1718450620116,12.0975,143.92,143.84,20.0]
[1718450620117,6.4175,143.92,143.88,5.68]
[1718450621304,6.4175,143.92,143.89,5.68]
[1718450621619,6.4175,143.92,143.88,5.68]
[1718450622532,6.4175,143.92,143.86,0.17]
[1718450622767,6.4175,143.92,143.87,5.68]
[1718450627770,12.0975,143.92,143.87,5.68]
[1718450628931,12.0975,143.92,143.86,5.68]
[1718450629741,12.0975,143.92,143.87,5.68]
[1718450631544,12.0975,143.92,143.86,5.68]
[1718450631747,5.68,143.91,143.86,5.68]
[1718450632642,5.68,143.91,143.85,5.68]
[1718450632851,5.68,143.9,143.85,5.68]
[1718450635670,5.68,143.91,143.85,5.68]
[1718450637151,6.4175,143.92,143.85,5.68]
[1718450637354,12.0975,143.92,143.83,100.17]
[1718450637665,12.0975,143.92,143.86,5.68]
[1718450639759,6.4175,143.92,143.86,0.17]
[1718450639952,6.4175,143.92,143.9,5.68]
[1718450640566,16.25093706,143.94,143.9,5.68]
[1718450641551,16.25093706,143.94,143.91,5.68]
[1718450643467,6.2015,143.96,143.93,5.68]
[1718450643769,20.714,143.98,143.92,5.68]
[1718450644058,5.68,143.97,143.92,5.68]
[1718450645166,15.034,143.98,143.9,0.17]
[1718450645373,20.714,143.98,143.93,5.68]
[1718450646573,20.714,143.98,143.92,5.68]
[1718450650263,20.714,143.98,143.9,0.68]
[1718450650460,5.68,143.97,143.92,5.68]
[1718450652565,15.034,143.98,143.93,1.38942268]
[1718450652781,15.034,143.98,143.94,5.68]
[1718450654051,15.034,143.98,143.95,1.38923205]
[1718450654658,15.034,143.98,143.94,5.68]
[1718450655287,15.034,143.98,143.95,0.58666004]
[1718450655467,100.0,144.07,143.97,5.68]
[1718450655468,5.68,144.02,143.97,5.68]
[1718450656077,15.034,144.01,143.97,5.68]
[1718450656667,15.034,144.01,143.95,0.58666004]
[1718450656864,15.034,144.01,143.96,5.68]
[1718450657583,15.034,144.01,143.97,1.38903601]
[1718450658682,15.034,144.01,143.97,5.68]
[1718450658878,15.034,144.01,143.98,7.06887789]
[1718450659078,15.034,144.01,143.98,5.68]
[1718450660064,15.034,144.01,143.97,5.68]
[1718450661471,15.034,144.01,143.98,5.68]
[1718450664569,15.034,144.01,143.97,5.68]
[1718450664992,15.034,144.01,143.96,5.68]
[1718450665491,15.034,144.01,143.97,5.68]
[1718450666697,27.0671,144.01,143.94,120.17]
[1718450666876,27.0671,144.01,143.95,5.68]
[1718450669470,5.68,144.0,143.95,5.68]
[1718450670797,27.0671,144.01,143.95,5.68]
[1718450671377,21.3871,144.01,143.95,5.68]
[1718450671588,27.0671,144.01,143.95,5.68]
[1718450673380,21.3871,144.01,143.93,0.34]
[1718450673586,5.68,143.98,143.92,100.0]
[1718450673894,5.68,143.98,143.92,105.68]
[1718450678310,5.68,143.98,143.93,5.68]
[1718450680702,12.0331,143.96,143.9,100.0]
[1718450680897,12.0331,143.96,143.9,105.68]
[1718450681588,12.0331,143.96,143.91,5.68]
[1718450682917,6.3531,143.96,143.91,5.68]
[1718450684319,6.3531,143.96,143.9,0.17]
[1718450684501,6.3531,143.96,143.91,5.68]
[1718450685334,6.3531,143.96,143.91,100.0]
[1718450685519,6.3531,143.96,143.93,5.68]
[1718450685705,15.3196,143.97,143.93,5.68]
[1718450685910,15.3196,143.97,143.94,5.68]
[1718450687002,15.3196,143.97,143.93,5.68]
[1718450687528,15.3196,143.97,143.94,5.68]
[1718450690624,15.3196,143.97,143.92,0.34]
[1718450690813,15.3196,143.97,143.94,5.68]
[1718450691421,15.3196,143.97,143.92,0.34]
[1718450691615,15.3196,143.97,143.94,5.68]
[1718450699743,15.3196,143.97,143.95,5.68]
[1718450700245,16.5106,144.01,143.96,5.68]
[1718450701604,16.5106,144.01,143.97,5.68]
[1718450705141,16.5106,144.01,143.95,120.84]
[1718450705318,16.5106,144.01,143.98,5.68]
[1718450705640,6.2081,144.03,143.99,5.68]
[1718450705845,6.2081,144.03,144.0,5.68]
[1718450707526,6.2081,144.03,143.99,5.68]
[1718450708439,16.2402,144.05,144.02,5.68]
[1718450708648,16.2402,144.05,144.03,1.38740558]
[1718450708944,16.2402,144.05,144.03,5.68]
[1718450709516,16.2402,144.05,144.0,1.55740558]
[1718450709732,16.2402,144.05,144.02,5.68]
[1718450710939,16.2402,144.05,144.03,5.68]
[1718450711633,6.5401,144.07,144.02,0.17]
[1718450711833,16.2402,144.09,144.04,5.68]
[1718450712029,16.2402,144.09,144.05,5.68]
[1718450715522,16.2402,144.09,144.06,1.04125696]
[1718450716541,16.2402,144.09,144.05,5.68]
[1718450716740,16.2402,144.09,144.04,5.68]
[1718450716942,18.808,144.09,144.03,100.0]
[1718450717253,2.568,144.08,144.02,0.34]
[1718450717427,34.2155,144.09,144.02,0.17]
[1718450717428,5.68,144.07,144.02,0.17]
[1718450722640,5.68,144.07,144.01,0.34]
[1718450722842,5.68,144.06,144.01,0.34]
[1718450723153,5.68,144.06,144.01,6.02]
[1718450727887,5.68,144.06,144.01,5.85]
[1718450728055,12.1188,144.06,144.0,5.68]
[1718450728240,5.68,144.05,144.0,5.68]
[1718450728648,5.68,144.05,143.99,5.68]
[1718450729351,5.68,144.05,143.99,0.17]
[1718450729551,5.68,144.05,143.99,6.36]
[1718450729937,6.4388,144.06,143.99,6.36]
[1718450730151,5.68,144.05,143.99,6.36]
[1718450735161,5.68,144.05,144.0,5.68]
[1718450736962,21.0798,144.05,144.0,5.68]
[1718450737152,21.0798,144.05,143.99,0.34]
[1718450737462,21.0798,144.05,143.99,5.68]
[1718450737658,21.0798,144.05,143.98,0.51]
[1718450737964,21.0798,144.05,143.99,5.68]
[1718450738866,5.68,144.04,143.98,0.34]
[1718450739043,5.68,144.04,143.98,5.68]
[1718450739244,5.68,144.03,143.95,120.84]
[1718450739463,5.68,144.03,143.97,5.68]
[1718450739844,5.68,144.02,143.96,5.68]
[1718450742366,5.68,144.03,143.97,5.68]
[1718450742761,5.68,144.03,143.98,5.68]
[1718450743635,15.3998,144.05,143.98,5.68]
[1718450743843,5.68,144.03,143.98,5.68]
[1718450745977,15.3998,144.05,143.98,5.68]
[1718450746268,5.68,144.04,143.98,5.68]
[1718450748366,5.68,144.04,143.99,5.68]
[1718450749140,5.68,144.04,144.0,1.35463868]
[1718450750154,21.0798,144.05,144.0,1.35463868]
[1718450750656,21.0798,144.05,143.99,5.68]
[1718450754075,23.6483,144.05,143.99,5.68]
[1718450754677,21.0798,144.05,143.99,5.68]
[1718450755058,23.6483,144.05,143.99,5.68]
[1718450759081,5.68,144.04,143.99,5.68]
[1718450759381,5.68,144.04,143.98,5.85]
[1718450761794,5.68,144.04,143.98,0.17]
[1718450761961,5.68,144.04,143.98,6.36]
[1718450765480,21.0798,144.05,143.98,6.36]
[1718450768985,21.0798,144.05,143.98,0.68]
[1718450769293,23.6483,144.05,143.99,5.68]
[1718450769598,23.6483,144.05,143.98,0.68]
[1718450769881,23.6483,144.05,143.99,5.68]
[1718450770191,21.0798,144.05,143.99,5.68]
[1718450770359,23.6483,144.05,143.99,5.68]
[1718450770783,21.0798,144.05,143.99,5.68]
[1718450770968,15.3998,144.05,143.99,5.68]
[1718450771291,15.3998,144.05,144.02,5.68]
[1718450772210,15.3998,144.05,144.03,5.68]
[1718450775669,15.3998,144.05,144.01,100.17]
[1718450775869,15.3998,144.05,144.02,0.34]
[1718450778293,15.3998,144.05,144.02,1.09189012]
[1718450778667,15.3998,144.05,144.02,1.72836821]
[1718450780374,15.3998,144.05,144.02,0.34]
[1718450783472,15.3998,144.05,144.0,0.17]
[1718450783797,15.3998,144.05,144.0,5.68]
[1718450789202,15.3998,144.05,143.99,100.0]
[1718450789401,15.3998,144.05,144.01,5.68]
[1718450791599,15.3998,144.05,144.0,5.68]
[1718450800606,15.3998,144.05,143.98,27.14713723]
[1718450800607,15.3998,144.05,143.99,0.17]
[1718450800803,15.3998,144.05,144.0,5.68]
[1718450805115,15.3998,144.05,144.01,5.68]
[1718450808396,15.3998,144.05,143.99,100.17]
[1718450808591,15.3998,144.05,144.0,5.68]
[1718450815222,15.3998,144.05,144.01,5.68]
[1718450821221,15.3998,144.05,144.01,100.0]
[1718450821525,7.24029132,144.1,144.02,0.51]
[1718450821526,15.7585,144.08,144.02,0.51]
[1718450821901,15.7585,144.08,144.06,5.68]
[1718450822123,6.2242,144.1,144.07,5.68]
[1718450823402,15.6957,144.12,144.08,5.68]
[1718450825201,15.6957,144.12,144.07,5.68]
[1718450826501,15.6957,144.12,144.08,1.17467373]
[1718450828135,15.6957,144.12,144.08,5.68]
[1718450837915,15.6957,144.12,144.06,100.17]
[1718450838239,15.6957,144.12,144.08,5.68]
[1718450838741,15.6957,144.12,144.07,5.68]
[1718450843037,5.68,144.11,144.03,100.0]
[1718450843355,5.68,144.09,144.03,5.68]
[1718450843824,5.68,144.09,144.04,5.68]
[1718450844924,5.68,144.11,144.05,5.85]
[1718450845446,5.68,144.1,144.05,5.85]
[1718450845643,5.68,144.11,144.05,5.68]
[1718450846550,15.6957,144.12,144.06,0.34]
[1718450846847,15.6957,144.12,144.08,5.68]
[1718450849870,23.8004672,144.18,144.11,0.17]
[1718450850037,22.2436,144.18,144.11,51.990633]
[1718450850356,22.2436,144.18,144.12,5.68]
[1718450851361,22.2436,144.18,144.09,9.90543096]
[1718450851362,5.68,144.16,144.09,9.90543096]
[1718450851539,5.68,144.15,144.1,5.68]
[1718450852051,5.68,144.15,144.08,108.39122965]
[1718450852225,5.68,144.15,144.1,5.68]
[1718450852650,16.5636,144.18,144.1,5.68]
[1718450852957,16.5636,144.18,144.09,0.17]
[1718450853155,16.5636,144.18,144.11,5.68]
[1718450853353,16.5636,144.18,144.1,5.68]
[1718450854038,19.1298,144.18,144.1,5.68]
[1718450854355,16.5636,144.18,144.1,5.68]
[1718450854929,19.1298,144.18,144.09,0.51]
[1718450855254,19.1298,144.18,144.1,5.68]
[1718450856859,24.2622,144.18,144.1,5.68]
[1718450858350,16.5636,144.18,144.1,5.68]
[1718450863455,16.5636,144.18,144.11,0.17]
[1718450863652,22.2436,144.18,144.12,5.68]
[1718450865037,16.5636,144.18,144.12,5.68]
[1718450865354,5.68,144.17,144.12,5.68]
[1718450865655,5.68,144.17,144.13,0.34]
[1718450865839,22.2436,144.18,144.13,0.34]
[1718450866038,22.2436,144.18,144.12,5.68]
[1718450866451,5.68,144.17,144.11,5.85]
[1718450868050,5.68,144.17,144.12,5.68]
[1718450869447,5.68,144.16,144.11,5.68]
[1718450870484,5.68,144.16,144.1,0.51]
[1718450870636,5.68,144.16,144.11,5.68]
[1718450877075,16.5636,144.18,144.15,5.68]
[1718450877458,16.5636,144.18,144.13,0.17]
[1718450877755,16.5636,144.18,144.15,5.68]
[1718450879575,16.5636,144.18,144.14,5.68]
[1718450879784,16.5636,144.18,144.15,5.68]
[1718450885497,16.5636,144.18,144.13,1.72721671]
[1718450885667,16.5636,144.18,144.14,5.68]
[1718450888488,15.6492,144.22,144.16,5.68]
[1718450888669,15.6492,144.22,144.14,100.0]
[1718450888670,21.3292,144.22,144.17,5.68]
[1718450888984,21.3292,144.22,144.16,5.68]
[1718450890074,15.6492,144.22,144.17,5.68]
[1718450890594,15.6492,144.22,144.16,100.0]
[1718450890595,15.6492,144.22,144.18,5.68]
[1718450895400,15.6492,144.22,144.19,5.68]
[1718450895897,15.6492,144.22,144.18,5.68]
[1718450896194,15.6492,144.22,144.16,120.83]
[1718450896195,15.6492,144.22,144.17,0.17]
[1718450896396,15.6492,144.22,144.18,5.68]
[1718450897783,15.6492,144.22,144.19,5.68]
[1718450899406,15.6492,144.22,144.2,5.68]
[1718450900899,31.8967248,144.26,144.2,5.68]
[1718450901100,47.8360248,144.26,144.2,5.68]
[1718450902702,8.245,144.25,144.19,0.34]
[1718450902912,8.245,144.25,144.2,5.68]
[1718450903791,5.68,144.25,144.2,5.68]
[1718450904392,8.245,144.25,144.2,5.68]
[1718450906098,5.68,144.25,144.2,5.68]
[1718450906401,8.2449,144.25,144.2,5.68]
[1718450907306,2.5649,144.25,144.2,5.68]
[1718450907506,8.2449,144.25,144.2,5.68]
[1718450907710,13.3748,144.25,144.2,5.68]
[1718450910313,5.68,144.25,144.2,5.68]
[1718450910529,22.1876248,144.26,144.21,6.02]
[1718450910807,22.1876248,144.26,144.2,5.68]
[1718450910808,29.8820248,144.26,144.2,5.68]
[1718450910997,29.8820248,144.26,144.19,0.34]
[1718450911189,29.8820248,144.26,144.2,5.68]
[1718450911818,8.2449,144.25,144.2,5.68]
[1718450912110,5.68,144.25,144.2,5.68]
[1718450913006,0.8584248,144.26,144.21,100.0]
[1718450913193,0.8584248,144.26,144.21,100.34]
[1718450913510,0.8584248,144.26,144.22,5.68]
[1718450913994,0.8584248,144.26,144.2,0.17]
[1718450914193,0.8584248,144.26,144.22,5.68]
[1718450914410,0.8584248,144.26,144.21,5.68]
[1718450917026,0.8584248,144.26,144.22,6.36]
[1718450917239,0.8584248,144.26,144.22,0.34]
[1718450917426,0.8584248,144.26,144.22,5.68]
[1718450918074,0.8584248,144.26,144.21,100.0]
[1718450918202,0.8584248,144.26,144.22,5.68]
[1718450918927,0.8584248,144.26,144.23,5.68]
[1718450919522,0.8584248,144.26,144.24,5.68]
[1718450920702,0.8584248,144.26,144.22,0.34]
[1718450921300,0.8584248,144.26,144.25,105.85]
[1718450921519,0.8584248,144.26,144.25,106.36]
[1718450923056,0.8584248,144.26,144.25,127.19]
[1718450923344,15.0941,144.36,144.3,100.0]
[1718450923515,15.0941,144.36,144.31,5.68]
[1718450923516,20.7741,144.36,144.31,5.68]
[1718450923869,5.68,144.35,144.26,100.0]
[1718450924019,5.68,144.33,144.27,5.68]
[1718450924334,5.68,144.32,144.25,0.68]
[1718450924542,5.1268,144.34,144.26,0.68]
[1718450924840,5.68,144.31,144.26,0.51]
[1718450925054,5.68,144.31,144.25,5.68]
[1718450926323,5.68,144.31,144.24,100.34]
[1718450926643,2.5636,144.33,144.25,5.68]
[1718450926942,5.68,144.31,144.26,5.68]
[1718450927643,5.68,144.31,144.25,5.68]
[1718450928322,5.68,144.27,144.2,100.0]
[1718450928522,5.68,144.26,144.21,5.68]
[1718450929939,5.68,144.25,144.21,0.17]
[1718450930142,5.68,144.25,144.21,0.68]
[1718450931146,12.8196,144.31,144.24,5.68]
[1718450931448,12.8196,144.31,144.23,5.68]
[1718450931449,23.076,144.31,144.23,5.68]
[1718450931625,5.68,144.29,144.23,5.68]
[1718450931946,5.68,144.28,144.22,126.51]
[1718450932264,5.68,144.28,144.22,105.68]
[1718450932430,5.68,144.26,144.21,6.36]
[1718450932756,5.68,144.26,144.21,0.68]
[1718450932930,5.68,144.26,144.21,6.36]
[1718450933451,15.0941,144.28,144.21,6.36]
[1718450933653,5.68,144.27,144.21,6.36]
[1718450933832,15.0941,144.28,144.21,6.36]
[1718450934027,5.68,144.27,144.21,6.36]
[1718450935159,5.68,144.27,144.21,27.19]
[1718450936941,5.68,144.27,144.21,5.68]
[1718450937147,5.68,144.26,144.2,105.68]
[1718450938254,15.0941,144.28,144.2,105.68]
[1718450938444,5.68,144.26,144.2,105.68]
[1718450939737,15.0941,144.28,144.21,6.19]
[1718450939945,5.68,144.27,144.21,6.19]
[1718450940455,5.68,144.27,144.22,1.38451004]
[1718450940837,15.0941,144.28,144.22,1.38451004]
[1718450941257,5.68,144.27,144.22,1.38451004]
[1718450942557,15.0941,144.28,144.22,1.38451004]
[1718450942759,5.68,144.27,144.22,1.38451004]
[1718450944464,15.0941,144.28,144.22,1.38451004]
[1718450944636,5.68,144.27,144.22,1.38451004]
[1718450946266,5.68,144.27,144.21,6.19]
[1718450948255,38.1627,144.32,144.23,0.17]
[1718450948460,5.68,144.28,144.24,100.0]
[1718450948640,22.7795,144.32,144.24,100.0]
[1718450948641,15.0883,144.32,144.25,1.38433846]
[1718450948836,5.68,144.28,144.25,1.38433846]
[1718450949665,22.7795,144.32,144.25,1.38433846]
[1718450949865,5.68,144.28,144.25,1.38433846]
[1718450950241,40.7258,144.32,144.24,100.0]